{"text_format":"1","workbook":"xlsx","n_sheets":7,"sheets":["1. Contact Info & Certification","2. Expenditure Breakdown","3. Reporting Requirements ","4. HMIS Data","5. Review Book","Will be Hidden","Data Tab"],"not_rendered":{"charts":0,"images":1,"macros":1,"external_links":0,"defined_names":4,"comments":0,"pivot_tables":0},"unopened":[],"bounds":{"document_bytes":16777216,"sheet_cells":100000,"rows_first":2000,"rows_last":500,"rows_between":2000,"halvings":0,"cell_chars":16384,"cell_head_chars":4096},"cells_cut":0,"cells_raw":0,"read":"whole","date_system":"1900"}

{"sheet":"1. Contact Info & Certification","index":0,"n_rows":54,"n_cols":15,"rows_kept":54,"cut":false,"hidden":false,"merged":[[0,0,0,7],[1,0,1,7],[2,0,2,7],[3,0,3,7],[4,0,4,7],[5,0,5,7],[9,0,9,2],[6,0,6,15],[7,0,7,15],[8,3,8,11],[23,11,23,15],[24,11,24,15],[25,11,25,15],[26,11,26,15],[25,8,25,10],[25,0,25,3],[26,0,26,3],[19,0,19,3],[18,4,18,15],[11,0,11,15],[12,0,12,15],[18,0,18,3],[16,0,16,15],[10,0,10,15],[14,0,14,15],[13,0,13,15],[15,0,15,3],[15,11,15,15],[15,8,15,10],[15,4,15,7],[17,0,17,15],[27,0,27,15],[28,0,28,3],[28,4,28,7],[28,8,28,10],[28,11,28,15],[26,8,26,10],[19,4,19,15],[21,0,21,3],[21,8,21,10],[21,4,21,7],[21,11,21,15],[20,11,20,15],[20,0,20,3],[20,4,20,7],[20,8,20,10],[23,4,23,7],[24,4,24,7],[25,4,25,7],[26,4,26,7],[22,0,22,15],[23,0,23,3],[23,8,23,10],[24,0,24,3],[24,8,24,10],[31,0,31,3],[31,4,31,7],[31,8,31,10],[31,11,31,15],[32,0,32,15],[29,0,29,3],[29,4,29,7],[29,8,29,10],[29,11,29,15],[30,0,30,3],[30,4,30,7],[30,8,30,10],[30,11,30,15],[40,0,40,15],[41,0,41,15],[42,0,42,15],[44,0,44,7],[44,8,44,15],[38,0,38,15],[39,0,39,15],[37,0,37,15],[33,11,33,15],[34,11,34,15],[35,11,35,15],[36,11,36,15],[33,8,33,10],[34,8,34,10],[35,8,35,10],[36,8,36,10],[33,4,33,7],[34,4,34,7],[35,4,35,7],[36,4,36,7],[33,0,33,3],[34,0,34,3],[35,0,35,3],[36,0,36,3],[48,0,48,15],[43,0,43,2],[43,3,43,6],[43,7,43,15],[46,0,46,7],[46,8,46,15],[45,0,45,7],[45,8,45,15],[47,8,47,15],[47,0,47,7],[51,0,51,6],[51,7,51,13],[51,14,51,15],[49,0,49,2],[49,3,49,6],[49,7,49,15],[50,0,50,6],[50,7,50,13],[50,14,50,15],[54,0,54,6],[54,7,54,13],[54,14,54,15],[52,0,52,2],[52,3,52,6],[52,7,52,15],[53,0,53,6],[53,7,53,13],[53,14,53,15]]}
["DEPARTMENT OF HOUSING AND COMMUNITY DEVELOPMENT"]
["DIVISION OF STATE FINANCIAL ASSISTANCE "]
["STATE GRANT MANAGEMENT"]
["2020 West El Camino, 4th Floor"]
["Sacramento, CA 95833"]
["CESH@hcd.ca.gov"]
[]
["California Emergency Solutions and Housing (CESH) Program "]
[null,null,null,"Annual Report"]
["Last Revised:  05/2021"]
["Instructions"]
["A. This report is subject to the CESH program requirements of Health and Safety Code (HSC) Part 2 of Division 31 Chapter 2.8, commencing with §50490 and including §50490.1, 50490.2, 50490.3, 50490.4, and 50490.5, and the 2018 and 2019 CESH Notice of Funding Availability (NOFA)."]
["B. An Administrative Entity that receives funds pursuant to the 2018 or 2019 CESH NOFA must submit a completed annual report each year by July 31 for the term of the contract with HCD that reports all activities from the previous fiscal year (7/1-6/30)."]
["C. Annual Report Submittal must be in Excel format with all applicable attachments and emailed to CESH@hcd.ca.gov. Please tab through each worksheet and ensure all four worksheets are completed. "]
["General Information"]
["HCD Contract #:",null,null,null,null,null,null,null,"Reporting Period:",null,null,"Select One"]
["Contact Information "]
["Administrative Entity "]
["Admin Entity Name:"]
["Admin Entity Address \n(number and street):"]
["Admin Entity City: ",null,null,null,null,null,null,null,"Admin Entity State:"]
["Admin Entity Zip",null,null,null,null,null,null,null,"Admin Entity County:"]
["Authorized Representative (Per Board Resolution)"]
["Name:",null,null,null,null,null,null,null,"Address \n(Number and Street):"]
["Title:",null,null,null,null,null,null,null,"City:"]
["Email Address:",null,null,null,null,null,null,null,"State:"]
["Phone Number:",null,null,null,null,null,null,null,"Zip:"]
["Contact Information (If different from Authorized Representative)"]
["Name:",null,null,null,null,null,null,null,"Address \n(Number and Street):"]
["Title:",null,null,null,null,null,null,null,"City:"]
["Email Address:",null,null,null,null,null,null,null,"State:"]
["Phone Number:",null,null,null,null,null,null,null,"Zip:"]
["Continuum of Care (CoC)"]
["CoC Service Area:",null,null,null,null,null,null,null,"Address \n(Number and Street):"]
["CoC #:",null,null,null,null,null,null,null,"City:"]
["CoC Representative Name:",null,null,null,null,null,null,null,"State:"]
["Email Address:",null,null,null,null,null,null,null,"Zip:"]
["Certification"]
["State of California\nOn behalf of the entity identified in the signature block below, I certify that:"]
["The information, statements and attachments included in this report are, to the best of my knowledge and belief, true and correct"]
[" I possess the legal authority to submit this report on behalf of the entity identified in the signature block."]
["In addition, I acknowledge that all information in this report and attachments is public, and may be disclosed by the State"]
["Note: You may choose \"Certification by Printed Name\" from the drop-down below and by doing so you are agreeing to all the information detailed in the above Certification without having to submit a copy of this document with a digital signature. If you select this option, please be sure to type out your name in both the \"Name of Authorized Person\" and \"Signature of Authorized Person\" fields. If you select \"Certification by Digital Signature,\" you must submit the following: 1) Copy of the Excel version of this document and 2) PDF copy with digital signature. "]
["Signature Method:",null,null,"Select One"]
["Name of Authorized Person",null,null,null,null,null,null,null,"Title of Authorized Person"]
[]
["Signature of Authorized Person",null,null,null,null,null,null,null,"Date"]
[]
["HCD USE ONLY"]
["Signature Method:",null,null,"Select One"]
["SGM Representative Printed Name",null,null,null,null,null,null,"SGM Representative Signature",null,null,null,null,null,null,"Date"]
[]
["Signature Method:",null,null,"Select One"]
["SGM Manager Printed Name",null,null,null,null,null,null,"SGM Manager Signature",null,null,null,null,null,null,"Date"]

{"sheet":"2. Expenditure Breakdown","index":1,"n_rows":82,"n_cols":19,"rows_kept":82,"cut":false,"hidden":false,"merged":[[5,10,5,15],[5,0,5,9],[5,16,6,19],[4,0,4,19],[3,0,3,4],[59,0,59,19],[66,0,66,19],[51,0,51,19],[58,0,58,19],[56,0,56,15],[56,16,56,19],[57,0,57,15],[57,16,57,19],[60,0,60,15],[60,16,60,19],[61,0,61,15],[61,16,61,19],[62,0,62,15],[62,16,62,19],[52,0,52,15],[52,16,52,19],[53,0,53,15],[53,16,53,19],[54,0,54,15],[32,0,32,15],[32,16,32,19],[33,0,33,15],[33,16,33,19],[43,0,43,19],[50,0,50,19],[35,0,35,19],[42,0,42,19],[36,0,36,15],[36,16,36,19],[37,0,37,15],[37,16,37,19],[38,0,38,15],[38,16,38,19],[39,0,39,15],[39,16,39,19],[40,0,40,15],[44,0,44,15],[44,16,44,19],[34,0,34,19],[45,0,45,15],[45,16,45,19],[46,0,46,15],[46,16,46,19],[29,0,29,15],[29,16,29,19],[30,0,30,15],[30,16,30,19],[31,0,31,15],[31,16,31,19],[20,0,20,15],[20,16,20,19],[26,0,26,19],[27,0,27,19],[28,0,28,15],[28,16,28,19],[21,0,21,15],[21,16,21,19],[22,0,22,15],[22,16,22,19],[23,0,23,15],[23,16,23,19],[24,0,24,15],[24,16,24,19],[25,16,25,19],[25,0,25,15],[13,18,13,19],[12,18,12,19],[11,18,11,19],[10,18,10,19],[9,18,9,19],[19,0,19,19],[17,0,17,19],[18,0,18,19],[16,0,16,19],[14,0,14,5],[14,18,14,19],[14,16,14,17],[14,14,14,15],[14,12,14,13],[14,8,14,9],[14,6,14,7],[15,0,15,5],[15,18,15,19],[15,16,15,17],[15,14,15,15],[15,12,15,13],[15,8,15,9],[15,6,15,7],[13,14,13,15],[11,6,11,7],[10,6,10,7],[9,6,9,7],[7,8,7,9],[13,16,13,17],[12,16,12,17],[11,16,11,17],[10,16,10,17],[9,16,9,17],[1,0,1,16],[2,0,2,19],[13,0,13,5],[11,12,11,13],[11,14,11,15],[12,12,12,13],[12,14,12,15],[12,8,12,9],[11,8,11,9],[9,12,9,13],[9,14,9,15],[10,12,10,13],[10,14,10,15],[7,12,7,13],[7,6,7,7],[8,0,8,5],[9,0,9,5],[11,0,11,5],[12,0,12,5],[7,16,7,17],[7,18,7,19],[8,6,8,7],[3,5,3,9],[3,10,3,13],[73,0,73,15],[73,16,73,19],[54,16,54,19],[55,0,55,15],[55,16,55,19],[63,0,63,15],[63,16,63,19],[48,0,48,15],[48,16,48,19],[49,0,49,15],[49,16,49,19],[64,0,64,15],[64,16,64,19],[65,0,65,15],[80,0,80,15],[80,16,80,19],[47,0,47,15],[47,16,47,19],[40,16,40,19],[41,0,41,15],[41,16,41,19],[81,0,81,15],[81,16,81,19],[79,0,79,15],[79,16,79,19],[68,16,68,19],[74,0,74,19],[75,0,75,19],[76,0,76,15],[76,16,76,19],[77,0,77,15],[77,16,77,19],[78,0,78,15],[78,16,78,19],[70,0,70,15],[70,16,70,19],[71,0,71,15],[71,16,71,19],[3,14,3,19],[72,0,72,15],[72,16,72,19],[65,16,65,19],[68,0,68,15],[69,0,69,15],[69,16,69,19],[67,0,67,19],[8,16,8,17],[8,18,8,19],[10,8,10,9],[9,8,9,9],[6,10,6,15],[6,0,6,9],[7,0,7,5],[10,0,10,5],[13,8,13,9],[7,14,7,15],[8,8,8,9],[8,12,8,13],[13,12,13,13],[8,14,8,15],[13,6,13,7],[12,6,12,7]]}
[]
[]
["Expenditure Breakdown"]
["Entity Name:",null,null,null,null,{"$f":"'1. Contact Info & Certification'!$E$19","v":0},null,null,null,null,"Contract #",null,null,null,{"$f":"'1. Contact Info & Certification'!$E$16","v":0}]
["Instructions: Please use the Expenditure Table (arranged by activity) below to provide information on your project's total CESH award amount, amount of the award expended this reporting period, whether the amount was expended by the Administrative Entity or Sub-Recipient (drop-down selection), Name of Sub-Recipient Expending Funds (if applicable), amount of the award previously reported expended and proof of expenditures supplied for this reporting period.  "]
["Funding Type",null,null,null,null,null,null,null,null,null,"Award Amount"]
["California Emergency Solutions and Housing (CESH) "]
["Activity Name",null,null,null,null,null,"Award Amount",null,"Amount of Award Expended this Reporting Period",null,"Amount Expended By","Name of Subrecipient Expending Funds\n(if applicable)","Previously Reported Amount Expended",null,"Proof of Expenditures for this Reporting Period Attached?",null,"Percent Expended",null,"Amount of Award Remaining"]
["Activity #1: Rental assistance, housing relocation & stabilization services to ensure housing affordability to individuals experiencing homelessness or who are at risk of homelessness. ",null,null,null,null,null,null,null,null,null,"Select One",null,null,null,"Select One",null,{"$f":"IF(G9,(I9+M9)/G9, 0)","v":0},null,{"$f":"G9-(I9+M9)","v":0}]
["Activity #2: Operating subsidies in the form of 15-year capitalized operating reserves for new and existing affordable permanent housing units for homeless individuals and/or families.",null,null,null,null,null,null,null,null,null,"Select One",null,null,null,"Select One",null,{"$f":"IF(G10,(I10+M10)/G10, 0)","v":0},null,{"$f":"G10-(I10+M10)","v":0}]
["Activity #3: Flexible housing subsidy funds for local programs that establish or support the provision of rental subsidies in permanent housing to assist homeless individuals & families.",null,null,null,null,null,null,null,null,null,"Select One",null,null,null,"Select One",null,0,null,0]
["Activity #4: Operating support for emergency housing interventions including but not limited to: navigation centers, street outreach, and shelter diversion. The AE shall not use more than 40% of any funds allocated in a fiscal year for this activity.",null,null,null,null,null,null,null,null,null,"Select One",null,null,null,"Select One",null,0,null,0]
["Activity #5: Systems support for activities necessary to maintain a comprehensive homeless services and housing delivery system, including Coordinated Entry System (CES) data, and Homeless Management Information System (HMIS) reporting, and homelessness planning activities.",null,null,null,null,null,null,null,null,null,"Select One",null,null,null,"Select One",null,0,null,0]
["Activity #6: Develop or update a CES, if the CoC does not have a system in place that meets the applicable HUD requirements, as set forth in Section II.E.3.b of the NOFA. Eligible costs do not include capital development activities.",null,null,null,null,null,null,null,null,null,"Select One",null,null,null,"Select One",null,0,null,0]
["Activity 7: Development of a plan addressing actions to be taken within the CoC service area if no such plan exists. Plan shall be submitted to HCD prior to expiration of HCD contract.",null,null,null,null,null,null,null,null,null,"Select One",null,null,null,"Select One",null,{"$f":"IF(G15,(I15+M15)/G15, 0)","v":0},null,{"$f":"G15-(I15+M15)","v":0}]
["Admin: Administrative costs as defined in Section II.D of the CESH NOFA.",null,null,null,null,null,null,null,null,null,"Select One",null,null,null,"Select One",null,{"$f":"IF(G16,(I16+M16)/G16, 0)","v":0},null,{"$f":"G16-(I16+M16)","v":0}]
["Expenditure Narrative "]
["Instructions: Please use the narrative boxes below  to explain how the funds you reported above were used to carry out the relevant activity. Narrative Boxes will only appear if you have entered an amount in the above table in the \"Amount of Award Expended this Reporting Period\" column.  "]
["Activity #1"]
["Please explain how the funds for this Activity were expended this reporting period"]
["Expenses ",null,null,null,null,null,null,null,null,null,null,null,null,null,null,null,"Expense Amount"]
[]
[]
[]
[]
["Total (Should match amount entered in \"Amount of Award Expended this Reporting Period\" above) :",null,null,null,null,null,null,null,null,null,null,null,null,null,null,null,{"$f":"SUM(Q22:T25)","v":0}]
["Activity #2"]
["Please explain how the funds for this Activity were expended this reporting period"]
["Expenses ",null,null,null,null,null,null,null,null,null,null,null,null,null,null,null,"Expense Amount"]
[]
[]
[]
[]
["Total (Should match amount entered in \"Amount of Award Expended this Reporting Period\" above) :",null,null,null,null,null,null,null,null,null,null,null,null,null,null,null,{"$f":"SUM(Q30:T33)","v":0}]
["Activity #3"]
["Please explain how the funds for this Activity were expended this reporting period"]
["Expenses ",null,null,null,null,null,null,null,null,null,null,null,null,null,null,null,"Expense Amount"]
[]
[]
[]
[]
["Total (Should match amount entered in \"Amount of Award Expended this Reporting Period\" above) :",null,null,null,null,null,null,null,null,null,null,null,null,null,null,null,{"$f":"SUM(Q38:T41)","v":0}]
["Activity #4"]
["Please explain how the funds for this Activity were expended this reporting period"]
["Expenses ",null,null,null,null,null,null,null,null,null,null,null,null,null,null,null,"Expense Amount"]
[]
[]
[]
[]
["Total (Should match amount entered in \"Amount of Award Expended this Reporting Period\" above) :",null,null,null,null,null,null,null,null,null,null,null,null,null,null,null,{"$f":"SUM(Q46:T49)","v":0}]
["Activity #5"]
["Please explain how the funds for this Activity were expended this reporting period"]
["Expenses ",null,null,null,null,null,null,null,null,null,null,null,null,null,null,null,"Expense Amount"]
[]
[]
[]
[]
["Total (Should match amount entered in \"Amount of Award Expended this Reporting Period\" above) :",null,null,null,null,null,null,null,null,null,null,null,null,null,null,null,{"$f":"SUM(Q54:T57)","v":0}]
["Activity #6"]
["Please explain how the funds for this Activity were expended this reporting period"]
["Expenses ",null,null,null,null,null,null,null,null,null,null,null,null,null,null,null,"Expense Amount"]
[]
[]
[]
[]
["Total (Should match amount entered in \"Amount of Award Expended this Reporting Period\" above) :",null,null,null,null,null,null,null,null,null,null,null,null,null,null,null,{"$f":"SUM(Q62:T65)","v":0}]
["Activity #7"]
["Please explain how the funds for this Activity were expended this reporting period"]
["Expenses ",null,null,null,null,null,null,null,null,null,null,null,null,null,null,null,"Expense Amount"]
[]
[]
[]
[]
["Total (Should match amount entered in \"Amount of Award Expended this Reporting Period\" above) :",null,null,null,null,null,null,null,null,null,null,null,null,null,null,null,{"$f":"SUM(Q70:T73)","v":0}]
["Admin "]
["Please explain how the funds for this Activity were expended this reporting period"]
["Expenses ",null,null,null,null,null,null,null,null,null,null,null,null,null,null,null,"Expense Amount"]
[]
[]
[]
[]
["Total (Should match amount entered in \"Amount of Award Expended this Reporting Period\" above) :",null,null,null,null,null,null,null,null,null,null,null,null,null,null,null,{"$f":"SUM(Q78:T81)","v":0}]

{"sheet":"3. Reporting Requirements ","index":2,"n_rows":36,"n_cols":14,"rows_kept":36,"cut":false,"hidden":false,"merged":[[2,0,2,15],[13,11,13,15],[27,3,27,5],[28,0,28,15],[23,3,23,5],[25,0,25,15],[26,0,26,15],[15,11,15,13],[15,14,15,15],[16,11,16,13],[16,14,16,15],[17,11,17,13],[15,4,15,6],[15,9,15,10],[16,4,16,6],[20,0,20,15],[1,0,1,14],[5,0,5,15],[10,0,10,15],[12,0,12,15],[11,0,11,15],[6,0,6,15],[7,0,7,2],[4,0,4,3],[4,4,4,7],[4,8,4,11],[4,12,4,15],[3,5,3,9],[8,0,8,12],[9,0,9,12],[8,13,8,15],[7,6,7,10],[31,0,31,12],[31,13,31,15],[21,0,21,15],[24,0,24,15],[19,0,19,2],[19,3,19,5],[22,0,22,15],[23,0,23,2],[19,11,19,15],[23,6,23,10],[23,11,23,15],[35,0,35,15],[36,0,36,15],[34,0,34,15],[33,0,33,15],[32,6,32,12],[32,13,32,15],[32,0,32,2],[32,3,32,5],[18,14,18,15],[18,4,18,6],[18,7,18,8],[30,0,30,4],[27,6,27,10],[27,11,27,15],[27,0,27,2],[29,0,29,15],[30,5,30,7],[18,9,18,10],[18,11,18,13],[18,0,18,3],[19,6,19,10],[30,8,30,12],[30,13,30,15],[7,11,7,15],[9,13,9,15],[14,0,14,15],[7,3,7,5],[17,14,17,15],[17,4,17,6],[17,7,17,8],[17,9,17,10],[15,7,15,8],[13,0,13,6],[13,7,13,10],[15,0,15,3],[16,0,16,3],[17,0,17,3],[16,7,16,8],[16,9,16,10]]}
[]
[]
["Reporting Requirements "]
[]
["Entity Name:",null,null,null,{"$f":"'1. Contact Info & Certification'!$E$19","v":0},null,null,null,"Contract #",null,null,null,{"$f":"'1. Contact Info & Certification'!$E$16","v":0}]
["Instructions: Please review each Reporting Requirement, confirm whether relevant documentation is attached, list any supporting documentation and provide any necessary comments."]
["1. Provide the Administrative Entity's program or project selection process performed to allocate available funds to subrecipients qualified to carry out the eligible activities. \nStandard Agreement: Exhibit D, Section 6, Part B(1)\n"]
["Documentation Attached?",null,null,"Select One",null,null,"Title of Attached Documentation:"]
["Have changes been made to project selection process since last submission?",null,null,null,null,null,null,null,null,null,null,null,null,"Select One"]
["If changes have been made to project selection process since last submission, is a copy of the updated process attached with this report? ",null,null,null,null,null,null,null,null,null,null,null,null,"Select One"]
["List supporting documentation and any comments. If \"No\" or \"N/A\" was selected above, please clarify."]
[]
["2. Provide amounts awarded to subrecipients, with the activity(ies) identified.\nStandard Agreement: Exhibit D, Section 6, Part B(2)                          \nAE must issue award letters to any subrecipients within 24 months of the date of an HCD award letter. If no subrecipient will be awarded, select \"N/A.\" If subrecipient will be awarded, but has not been yet, select \"No\" and clarify. \nNote: Supporting documentation may include award letters or subrecipient agreements that demonstrate proposed activities. "]
["Enter the date of the CESH Award Letter from HCD:"]
["Instructions: If program funds were awarded to subrecipients, please use the boxes below to provide the name of the subrecipient, amount awarded to the subrecipient and the date of the subrecipient award letter."]
["Subrecipient #1 Name:",null,null,null,null,null,null,"Award Amount:",null,0,null,"Enter the date of your Subrecipient Award Letter award(s):"]
["Subrecipient #2 Name:",null,null,null,null,null,null,"Award Amount:",null,0,null,"Enter the date of your Subrecipient Award Letter award(s):"]
["Subrecipient #3 Name:",null,null,null,null,null,null,"Award Amount:",null,0,null,"Enter the date of your Subrecipient Award Letter award(s):"]
["Subrecipient #4 Name:",null,null,null,null,null,null,"Award Amount:",null,0,null,"Enter the date of your Subrecipient Award Letter award(s):"]
["Documentation Attached?",null,null,"Select One",null,null,"Title of Attached Documentation:"]
["List supporting documentation and any comments. If \"No\" or \"N/A\" was selected above, please clarify."]
[]
["3. Provide projected performance measures (this can include projections for individuals served in the next reporting period, projections of number of supportive services performed or offered in the next reporting period, or any other performance measures your project has identified). \nStandard Agreement: Exhibit D, Section 6, Part B(3)                         "]
["Documentation Attached?",null,null,"Select One",null,null,"Title of Attached Documentation:"]
["List supporting documentation and any comments. If \"No\" or \"N/A\" was selected above, please clarify."]
[]
["4. Provide a copy of any income the AE or subrecipient received from funded activities (program income) earned from the CESH FUND, such as interest earned.                                                               \nCESH NOFA: Section II, F(6) consistent with the requirements of the CESH program for the eligible activities described in Section II.B.                                                                         Note: Supporting documentation may include bank statements, general ledger, etc."]
["Documentation Attached?",null,null,"Select One",null,null,"Title of Attached Documentation:"]
["List supporting documentation and any comments. If \"No\" or \"N/A\" was selected above, please clarify."]
[]
["5a. Program Income earned during this reporting period:",null,null,null,null,null,null,null,"5b. Approximate Number of Households to be assisted with this period's Program Income (including interest earned):"]
["6. Have you performed an onsite monitoring visit of subrecipients and/or any other services providers?                                               \nStandard Agreement: Exhibit D, Section 5, Part A                        \nOne site visit is required at least once during the grant period. Submit proof of site visit and outcome of site visit.",null,null,null,null,null,null,null,null,null,null,null,null,"Select One"]
["Documentation Attached?",null,null,"Select One",null,null,"Date of most recent site visit (MM/DD/YYYY):"]
["List supporting documentation and any comments. If \"No\" or \"N/A\" was selected above, please clarify."]
[]
["7. Please share any success stories you’ve had from CESH funded projects. Be sure to include both project-level and client-level successes. "]

{"sheet":"4. HMIS Data","index":3,"n_rows":25,"n_cols":23,"rows_kept":25,"cut":false,"hidden":false,"merged":[[8,0,8,1],[8,2,8,11],[9,0,9,1],[9,2,9,11],[5,0,5,23],[6,0,6,1],[6,2,6,11],[6,12,6,13],[6,14,6,23],[7,0,7,1],[7,2,7,11],[7,12,7,13],[7,14,7,23],[8,12,8,13],[8,14,8,23],[9,12,9,23],[3,0,3,5],[3,6,3,11],[3,12,3,17],[3,18,3,23],[23,0,23,23],[24,0,24,23],[25,0,25,23],[11,2,11,3],[11,0,11,1],[10,0,10,21],[4,0,4,23],[10,22,10,23],[11,12,11,13],[11,10,11,11],[11,8,11,9],[11,6,11,7],[11,4,11,5],[11,22,11,23],[11,20,11,21],[11,18,11,19],[11,16,11,17],[11,14,11,15],[12,4,12,5],[13,4,13,5],[0,0,2,23],[13,0,13,1],[12,0,12,1],[18,2,18,3],[16,2,16,3],[17,2,17,3],[15,2,15,3],[14,2,14,3],[13,2,13,3],[12,2,12,3],[18,0,18,1],[17,0,17,1],[16,0,16,1],[15,0,15,1],[14,0,14,1],[17,4,17,5],[18,4,18,5],[12,6,12,7],[13,6,13,7],[14,6,14,7],[15,6,15,7],[16,6,16,7],[17,6,17,7],[18,6,18,7],[14,4,14,5],[15,4,15,5],[16,4,16,5],[17,8,17,9],[18,8,18,9],[12,10,12,11],[13,10,13,11],[14,10,14,11],[15,10,15,11],[16,10,16,11],[17,10,17,11],[18,10,18,11],[12,8,12,9],[13,8,13,9],[14,8,14,9],[15,8,15,9],[16,8,16,9],[17,12,17,13],[18,12,18,13],[12,14,12,15],[13,14,13,15],[14,14,14,15],[15,14,15,15],[16,14,16,15],[17,14,17,15],[18,14,18,15],[12,12,12,13],[13,12,13,13],[14,12,14,13],[15,12,15,13],[16,12,16,13],[17,16,17,17],[18,16,18,17],[12,18,12,19],[13,18,13,19],[14,18,14,19],[15,18,15,19],[16,18,16,19],[17,18,17,19],[18,18,18,19],[12,16,12,17],[13,16,13,17],[14,16,14,17],[15,16,15,17],[16,16,16,17],[17,20,17,21],[18,20,18,21],[12,22,12,23],[13,22,13,23],[14,22,14,23],[15,22,15,23],[16,22,16,23],[17,22,17,23],[18,22,18,23],[12,20,12,21],[13,20,13,21],[14,20,14,21],[15,20,15,21],[16,20,16,21],[20,20,20,23],[20,0,20,19],[21,0,21,19],[22,0,22,19],[22,20,22,23],[21,20,21,23],[19,22,19,23],[19,18,19,19],[19,14,19,15],[19,0,19,1],[19,20,19,21],[19,16,19,17],[19,12,19,13],[19,10,19,11],[19,8,19,9],[19,6,19,7],[19,4,19,5],[19,2,19,3]]}
["HMIS Data"]
[]
[]
["Entity Name:",null,null,null,null,null,{"$f":"'1. Contact Info & Certification'!$E$19","v":0},null,null,null,null,null,"Contract #",null,null,null,null,null,{"$f":"'1. Contact Info & Certification'!$E$16","v":0}]
["Instructions: Identify the project or system performance measured based on HMIS data from the CoC service area for only this reporting period. Please ensure that if you have reported on certain persons on a previous report, you are not reporting them again. Report outcomes in whole numbers only. Certify that each activity is administered consistent with Housing First as described in §II.G of the NOFA. Refer to \"Expenditure Breakdown\" tab for Activity descriptions and corresponding #. If you have an identified performance measure other than the one's listed, please utilize the \"Other Identified Performance Measure\" sections and provide a short description of the measure and its numerical outcome. "]
["Activity Descriptions"]
["Activity #1",null,"Rental assistance, housing relocation & stabilization services to ensure housing affordability to individuals experiencing homelessness or who are at risk of homelessness. ",null,null,null,null,null,null,null,null,null,"Activity #2",null,"Operating subsidies in the form of 15-year capitalized operating reserves for new and existing affordable permanent housing units for homeless individuals and/or families."]
["Activity #3",null,"Flexible housing subsidy funds for local programs that establish or support the provision of rental subsidies in permanent housing to assist homeless individuals & families.",null,null,null,null,null,null,null,null,null,"Activity #4",null,"Operating support for emergency housing interventions including but not limited to: navigation centers, street outreach, and shelter diversion. The AE shall not use more than 40% of any funds allocated in a fiscal year for this activity."]
["Activity #5",null,"Systems support for activities necessary to maintain a comprehensive homeless services and housing delivery system, including Coordinated Entry System (CES) data, and Homeless Management Information System (HMIS) reporting, and homelessness planning activities.",null,null,null,null,null,null,null,null,null,"Activity #6",null,"Develop or update a CES, if the CoC does not have a system in place that meets the applicable HUD requirements, as set forth in Section II.E.3.b of the NOFA. Eligible costs do not include capital development activities."]
["Activity #7",null,"Development of a plan addressing actions to be taken within the CoC service area if no such plan exists. Plan shall be submitted to HCD prior to expiration of HCD contract."]
["Performance Measures",null,null,null,null,null,null,null,null,null,null,null,null,null,null,null,null,null,null,null,null,null,"Housing First"]
["Activity",null,"Number of Homeless Persons Served this Reporting Period (in whole numbers)",null,"Number of Unsheltered Homeless Persons Served this Reporting Period (in whole numbers)",null,"Average length of time, in days, spent as homeless before entry into program or project (in whole numbers)",null,"Number of homeless persons exiting the program or project into permanent housing within this Reporting Period (in whole numbers)",null,"Number of persons that return to homelessness after exiting the program or project within this Reporting Period (in whole numbers)",null,"Number of persons at risk of homelessness served in this reporting period (in whole numbers)",null,"Other Identified Performance Measure #1",null,"Numerical outcome (in whole numbers)",null,"Other Identified Performance Measure  #2",null,"Numerical outcome (in whole numbers)",null,"AE or subrecipient administered activity consistent with Housing First?"]
[1,null,null,null,null,null,null,null,null,null,null,null,null,null,null,null,null,null,null,null,null,null,"Select One"]
[2,null,null,null,null,null,null,null,null,null,null,null,null,null,null,null,null,null,null,null,null,null,"Select One"]
[3,null,null,null,null,null,null,null,null,null,null,null,null,null,null,null,null,null,null,null,null,null,"Select One"]
[4,null,null,null,null,null,null,null,null,null,null,null,null,null,null,null,null,null,null,null,null,null,"Select One"]
[5,null,null,null,null,null,null,null,null,null,null,null,null,null,null,null,null,null,null,null,null,null,"Select One"]
[6,null,null,null,null,null,null,null,null,null,null,null,null,null,null,null,null,null,null,null,null,null,"Select One"]
[7,null,null,null,null,null,null,null,null,null,null,null,null,null,null,null,null,null,null,null,null,null,"Select One"]
["Totals:",null,{"$f":"SUM(C13:D19)","v":0},null,{"$f":"SUM(E13:F19)","v":0},null,{"$f":"SUM(G13:H19)","v":0},null,{"$f":"SUM(I13:J19)","v":0},null,{"$f":"SUM(K13:L19)","v":0},null,{"$f":"SUM(M13:N19)","v":0},null,null,null,{"$f":"SUM(Q13:R19)","v":0},null,null,null,{"$f":"SUM(U13:V19)","v":0}]
["If your project served Transitional Aged Youth \"TAY\" (16-24 years of age), please provide the number of TAY individuals served with CESH funds this reporting period:"]
["If your project served Seniors (65 years of age or older), please provide the number of Seniors served with CESH funds this reporting period:"]
["If your project served families with minor children (below 16 years of age), please provide the number of minor children housed with CESH funds this reporting period:"]
["Comments:"]
["Instructions: Please use the comment box below to elaborate on Other Identified Performance Measure(s) or to provide any other additional information. "]

{"sheet":"5. Review Book","index":4,"n_rows":54,"n_cols":23,"rows_kept":54,"cut":false,"hidden":true,"merged":[[1,0,2,26],[0,0,0,26],[37,0,37,26],[5,15,5,26],[6,15,14,26],[4,0,4,26],[3,0,3,26],[27,15,27,26],[28,19,28,26],[29,19,29,26],[30,19,30,26],[31,19,31,26],[32,19,32,26],[17,21,17,26],[18,21,18,26],[19,21,19,26],[20,21,20,26],[21,21,21,26],[22,21,22,26],[23,21,23,26],[24,21,24,26],[33,19,33,26],[34,19,34,26],[35,19,35,26],[36,19,36,26],[30,6,30,8],[29,6,29,8],[36,3,36,5],[35,3,35,5],[34,3,34,5],[33,3,33,5],[32,3,32,5],[31,3,31,5],[30,3,30,5],[29,3,29,5],[36,6,36,8],[35,6,35,8],[34,6,34,8],[33,6,33,8],[32,6,32,8],[31,6,31,8],[30,12,30,14],[29,12,29,14],[36,9,36,11],[35,9,35,11],[34,9,34,11],[33,9,33,11],[32,9,32,11],[31,9,31,11],[30,9,30,11],[29,9,29,11],[36,12,36,14],[35,12,35,14],[34,12,34,14],[33,12,33,14],[32,12,32,14],[31,12,31,14],[36,17,36,18],[35,17,35,18],[34,17,34,18],[33,17,33,18],[32,17,32,18],[31,17,31,18],[30,17,30,18],[29,17,29,18],[36,15,36,16],[35,15,35,16],[34,15,34,16],[33,15,33,16],[32,15,32,16],[31,15,31,16],[30,15,30,16],[29,15,29,16],[29,1,29,2],[30,1,30,2],[31,1,31,2],[32,1,32,2],[33,1,33,2],[34,1,34,2],[35,1,35,2],[36,1,36,2],[5,0,5,14],[6,0,6,14],[26,0,26,14],[27,0,27,14],[15,0,15,26],[16,0,16,26],[25,21,25,26],[26,15,26,26],[19,19,19,20],[18,19,18,20],[25,19,25,20],[24,19,24,20],[23,19,23,20],[22,19,22,20],[21,19,21,20],[20,19,20,20],[17,19,17,20],[18,9,18,10],[18,13,18,14],[18,15,18,16],[17,17,17,18],[17,15,17,16],[17,13,17,14],[17,9,17,10],[28,1,28,2],[19,17,19,18],[18,17,18,18],[25,17,25,18],[24,17,24,18],[23,17,23,18],[22,17,22,18],[21,17,21,18],[20,17,20,18],[28,17,28,18],[19,15,19,16],[20,5,20,6],[20,7,20,8],[20,9,20,10],[20,13,20,14],[17,1,17,2],[17,3,17,4],[17,5,17,6],[17,7,17,8],[20,1,20,2],[19,1,19,2],[20,15,20,16],[19,5,19,6],[19,7,19,8],[19,9,19,10],[19,13,19,14],[18,7,18,8],[18,5,18,6],[18,3,18,4],[20,3,20,4],[19,3,19,4],[18,1,18,2],[25,1,25,2],[25,5,25,6],[25,7,25,8],[25,9,25,10],[25,13,25,14],[21,15,21,16],[22,5,22,6],[22,7,22,8],[22,9,22,10],[22,13,22,14],[22,15,22,16],[21,5,21,6],[24,1,24,2],[23,1,23,2],[22,1,22,2],[21,1,21,2],[22,3,22,4],[21,3,21,4],[21,7,21,8],[21,9,21,10],[21,13,21,14],[28,3,28,5],[23,15,23,16],[24,5,24,6],[24,7,24,8],[24,9,24,10],[24,13,24,14],[24,15,24,16],[23,5,23,6],[23,7,23,8],[23,9,23,10],[23,13,23,14],[24,3,24,4],[23,3,23,4],[28,6,28,8],[28,9,28,11],[25,15,25,16],[25,3,25,4],[28,12,28,14],[28,15,28,16],[11,9,11,14],[13,3,13,8],[13,9,13,14],[11,0,14,2],[14,9,14,14],[14,3,14,8],[12,9,12,14],[12,3,12,8],[7,9,7,11],[9,9,9,11],[9,12,9,14],[7,12,7,14],[7,0,8,2],[9,0,10,2],[10,12,10,14],[10,3,10,8],[8,12,8,14],[8,3,8,8],[7,3,7,8],[9,3,9,8],[11,3,11,8],[10,9,10,11],[8,9,8,11],[39,6,39,7],[39,4,39,5],[39,1,39,3],[38,0,38,19],[38,20,38,21],[38,22,38,26],[40,20,40,21],[41,20,41,21],[39,22,39,26],[40,22,40,26],[41,22,41,26],[41,4,41,5],[40,4,40,5],[41,6,41,7],[40,6,40,7],[40,8,40,9],[41,8,41,9],[39,20,39,21],[39,14,39,15],[39,12,39,13],[39,10,39,11],[39,8,39,9],[40,0,41,0],[40,1,40,3],[41,10,41,11],[40,10,40,11],[40,12,40,13],[41,12,41,13],[41,14,41,15],[40,14,40,15],[42,0,43,0],[42,1,42,3],[42,4,42,5],[42,6,42,7],[42,8,42,9],[42,10,42,11],[42,12,42,13],[42,14,42,15],[41,1,41,3],[42,20,42,21],[42,22,42,26],[43,1,43,3],[43,4,43,5],[43,6,43,7],[43,8,43,9],[43,10,43,11],[43,12,43,13],[43,14,43,15],[43,20,43,21],[43,22,43,26],[44,0,45,0],[44,1,44,3],[44,4,44,5],[44,6,44,7],[44,8,44,9],[44,10,44,11],[44,12,44,13],[44,14,44,15],[44,20,44,21],[44,22,44,26],[45,1,45,3],[45,4,45,5],[45,6,45,7],[45,8,45,9],[45,10,45,11],[45,12,45,13],[45,14,45,15],[45,20,45,21],[45,22,45,26],[46,0,47,0],[46,1,46,3],[46,4,46,5],[46,6,46,7],[46,8,46,9],[46,10,46,11],[46,12,46,13],[46,14,46,15],[46,20,46,21],[46,22,46,26],[47,1,47,3],[47,4,47,5],[47,6,47,7],[47,8,47,9],[47,10,47,11],[47,12,47,13],[47,14,47,15],[47,20,47,21],[47,22,47,26],[48,0,49,0],[48,1,48,3],[48,4,48,5],[48,6,48,7],[48,8,48,9],[48,10,48,11],[48,12,48,13],[48,14,48,15],[48,20,48,21],[48,22,48,26],[49,1,49,3],[49,4,49,5],[49,6,49,7],[49,8,49,9],[49,10,49,11],[49,12,49,13],[49,14,49,15],[49,20,49,21],[49,22,49,26],[50,0,51,0],[50,1,50,3],[50,4,50,5],[50,6,50,7],[50,8,50,9],[50,10,50,11],[50,12,50,13],[50,14,50,15],[50,20,50,21],[50,22,50,26],[51,1,51,3],[51,4,51,5],[51,6,51,7],[51,8,51,9],[51,10,51,11],[51,12,51,13],[51,14,51,15],[51,20,51,21],[51,22,51,26],[52,0,53,0],[52,1,52,3],[52,4,52,5],[52,6,52,7],[52,8,52,9],[52,10,52,11],[52,12,52,13],[52,14,52,15],[52,20,52,21],[52,22,52,26],[53,1,53,3],[53,4,53,5],[53,6,53,7],[53,8,53,9],[53,10,53,11],[53,12,53,13],[53,14,53,15],[53,20,53,21],[53,22,53,26]]}
[]
["California Emergency Solutions and Housing (CESH) "]
[]
["Review Workbook"]
[]
["Section 1",null,null,null,null,null,null,null,null,null,null,null,null,null,null,"This box can be used to add additional comments regarding Sections 1-Section 5"]
["General Information "]
["Rep Information",null,null,"Reviewing Rep Name",null,null,null,null,null,"Review Start Date",null,null,"Review End Date"]
[]
["Manager Information",null,null,"Reviewing Manager Name",null,null,null,null,null,"Review Start Date",null,null,"Review End Date"]
[]
["General Applicant Information",null,null,"Applicant Name",null,null,null,null,null,"Contract #"]
[null,null,null,{"$f":"'1. Contact Info & Certification'!$E$19","v":0},null,null,null,null,null,{"$f":"'1. Contact Info & Certification'!$E$16","v":0}]
[null,null,null,"COC Name ",null,null,null,null,null,"COC #"]
[null,null,null,{"$f":"'1. Contact Info & Certification'!$E$34","v":0},null,null,null,null,null,{"$f":"'1. Contact Info & Certification'!$E$35","v":0}]
["Section 2 "]
["Contract Expenditures"]
["Activity #","HCD Approved Budget Amount (based on current Budget Revision Form, if applicable)",null,"HCD Approved Budget Amount Confirmed?",null,"Amount Expended (as reported in Annual Report)",null,"Amount Previously Expended (as reported in Annual Report) ",null,"Amount Expended and Previously Expended Confirmed?",null,"RFF #1 Amount","RFF #2 Amount","RFF #3 Amount",null,"Total RFF Amounts (Approved to date)",null,"Contract Balance",null,"Does Supporting Documentation reconcile with RFF amounts submitted to date?",null,"Comments"]
[1,{"$f":"'2. Expenditure Breakdown'!$G$9","v":0},null,"Select One",null,{"$f":"'2. Expenditure Breakdown'!I9","v":0},null,{"$f":"'2. Expenditure Breakdown'!M9","v":0},null,"Select One",null,null,null,null,null,{"$f":"SUM(J19,L19,N19)","v":0},null,{"$f":"B19-P19","v":0},null,"Select One"]
[2,{"$f":"'2. Expenditure Breakdown'!$G$10","v":0},null,"Select One",null,{"$f":"'2. Expenditure Breakdown'!I10","v":0},null,{"$f":"'2. Expenditure Breakdown'!M10","v":0},null,"Select One",null,null,null,null,null,{"$f":"SUM(J20,L20,N20)","v":0},null,{"$f":"B20-P20","v":0},null,"Select One"]
[3,{"$f":"'2. Expenditure Breakdown'!$G$11","v":0},null,"Select One",null,{"$f":"'2. Expenditure Breakdown'!I11","v":0},null,{"$f":"'2. Expenditure Breakdown'!M11","v":0},null,"Select One",null,null,null,null,null,0,null,0,null,"Select One"]
[4,{"$f":"'2. Expenditure Breakdown'!$G$12","v":0},null,"Select One",null,{"$f":"'2. Expenditure Breakdown'!I12","v":0},null,{"$f":"'2. Expenditure Breakdown'!M12","v":0},null,"Select One",null,null,null,null,null,0,null,0,null,"Select One"]
[5,{"$f":"'2. Expenditure Breakdown'!$G$13","v":0},null,"Select One",null,{"$f":"'2. Expenditure Breakdown'!I13","v":0},null,{"$f":"'2. Expenditure Breakdown'!M13","v":0},null,"Select One",null,null,null,null,null,0,null,0,null,"Select One"]
[6,{"$f":"'2. Expenditure Breakdown'!$G$14","v":0},null,"Select One",null,{"$f":"'2. Expenditure Breakdown'!I14","v":0},null,{"$f":"'2. Expenditure Breakdown'!M14","v":0},null,"Select One",null,null,null,null,null,0,null,0,null,"Select One"]
[7,{"$f":"'2. Expenditure Breakdown'!$G$15","v":0},null,"Select One",null,{"$f":"'2. Expenditure Breakdown'!I15","v":0},null,{"$f":"'2. Expenditure Breakdown'!M15","v":0},null,"Select One",null,null,null,null,null,0,null,0,null,"Select One"]
["Admin",{"$f":"'2. Expenditure Breakdown'!$G$16","v":0},null,"Select One",null,{"$f":"'2. Expenditure Breakdown'!I16","v":0},null,{"$f":"'2. Expenditure Breakdown'!M16","v":0},null,"Select One",null,null,null,null,null,0,null,0,null,"Select One"]
["Section 3 ",null,null,null,null,null,null,null,null,null,null,null,null,null,null,"Section 4"]
["Amounts Awarded to Subrecipient",null,null,null,null,null,null,null,null,null,null,null,null,null,null,"Selection Process"]
["Activity #","HCD Approved Budget Amount (based on current Budget Revision Form, if applicable)",null,"Amount Awarded to Subreceipients Standard Agreement: Exhibit D, Section 6, Part B(2)",null,null,"Does Supporting Documentation include amount awarded to subrecipient?",null,null,"Does Supporting Documentation include a description of the eligible CESH Activity to be performed by subrecipient?",null,null,"Does Supporting Documentation include the date of award to the subrecipient?",null,null,"Activity #",null,"Type of Supporting documentation submitted?",null,"Does Supporting Documentation show the selection process was performed in collaboration with the CoC?"]
[1,{"$f":"'2. Expenditure Breakdown'!G9","v":0},null,null,null,null,"Select One",null,null,"Select One",null,null,"Select One",null,null,1]
[2,{"$f":"'2. Expenditure Breakdown'!G10","v":0},null,null,null,null,"Select One",null,null,"Select One",null,null,"Select One",null,null,2]
[3,{"$f":"'2. Expenditure Breakdown'!G11","v":0},null,null,null,null,"Select One",null,null,"Select One",null,null,"Select One",null,null,3]
[4,{"$f":"'2. Expenditure Breakdown'!G12","v":0},null,null,null,null,"Select One",null,null,"Select One",null,null,"Select One",null,null,4]
[5,{"$f":"'2. Expenditure Breakdown'!G13","v":0},null,null,null,null,"Select One",null,null,"Select One",null,null,"Select One",null,null,5]
[6,{"$f":"'2. Expenditure Breakdown'!G14","v":0},null,null,null,null,"Select One",null,null,"Select One",null,null,"Select One",null,null,6]
[7,{"$f":"'2. Expenditure Breakdown'!G15","v":0},null,null,null,null,"Select One",null,null,"Select One",null,null,"Select One",null,null,7]
["Admin",{"$f":"'2. Expenditure Breakdown'!G16","v":0},null,null,null,null,"Select One",null,null,"Select One",null,null,"Select One",null,null,"Admin"]
["Section 5"]
["Performance Measures",null,null,null,null,null,null,null,null,null,null,null,null,null,null,null,null,null,null,null,"Housing First"]
["Activity #","Measures",null,null,"Number of Homeless Persons served",null,"Number of unsheltered homeless persons served",null,"Average length of time, in days, spent as homeless before entry into program or project",null,"Number of homeless persons exiting the program or project into permanent housing",null," Number of persons that return to homlessness after exiting the program or project",null,"Number of persons at risk of homelessness served",null,"Other identified\nperformance measure #1","Numerical outcome","Other identified\nperformance measure #2","Numerical outcome","AE or subrecipient administered activity consistent with Housing First",null,"Comments"]
[1,"Projected: Enter the \"Projected Performance Measures\" as submitted in the grantee's application.",null,null,null,null,null,null,null,null,null,null,null,null,null,null,null,null,null,null,"Select One"]
[null,"Annual Report: Enter the \"Performance Measures\" as reported in the grantee's current Annual Report",null,null,{"$f":"'4. HMIS Data'!C13","v":0},null,{"$f":"'4. HMIS Data'!E13","v":0},null,{"$f":"'4. HMIS Data'!G13","v":0},null,{"$f":"'4. HMIS Data'!I13","v":0},null,{"$f":"'4. HMIS Data'!K13","v":0},null,{"$f":"'4. HMIS Data'!M13","v":0},null,{"$f":"'4. HMIS Data'!O13","v":0},{"$f":"'4. HMIS Data'!$Q$13","v":0},{"$f":"'4. HMIS Data'!$S$13","v":0},{"$f":"$T$41","v":0},"Select One"]
[2,"Projected: Enter the \"Projected Performance Measures\" as submitted in the grantee's application.",null,null,null,null,null,null,null,null,null,null,null,null,null,null,null,null,null,null,"Select One"]
[null,"Annual Report: Enter the \"Performance Measures\" as reported in the grantee's current Annual Report",null,null,{"$f":"'4. HMIS Data'!C14","v":0},null,{"$f":"'4. HMIS Data'!E14","v":0},null,{"$f":"'4. HMIS Data'!G14","v":0},null,{"$f":"'4. HMIS Data'!I14","v":0},null,{"$f":"'4. HMIS Data'!K14","v":0},null,{"$f":"'4. HMIS Data'!M14","v":0},null,{"$f":"'4. HMIS Data'!O14","v":0},{"$f":"'4. HMIS Data'!$Q$14","v":0},{"$f":"'4. HMIS Data'!$S$14","v":0},{"$f":"'4. HMIS Data'!$U$14","v":0},"Select One"]
[3,"Projected: Enter the \"Projected Performance Measures\" as submitted in the grantee's application.",null,null,null,null,null,null,null,null,null,null,null,null,null,null,null,null,null,null,"Select One"]
[null,"Annual Report: Enter the \"Performance Measures\" as reported in the grantee's current Annual Report",null,null,{"$f":"'4. HMIS Data'!C15","v":0},null,{"$f":"'4. HMIS Data'!E15","v":0},null,{"$f":"'4. HMIS Data'!G15","v":0},null,{"$f":"'4. HMIS Data'!I15","v":0},null,{"$f":"'4. HMIS Data'!K15","v":0},null,{"$f":"'4. HMIS Data'!M15","v":0},null,{"$f":"'4. HMIS Data'!O15","v":0},{"$f":"'4. HMIS Data'!$Q$15","v":0},{"$f":"'4. HMIS Data'!$S$15","v":0},{"$f":"'4. HMIS Data'!$U$15","v":0},"Select One"]
[4,"Projected: Enter the \"Projected Performance Measures\" as submitted in the grantee's application.",null,null,null,null,null,null,null,null,null,null,null,null,null,null,null,null,null,null,"Select One"]
[null,"Annual Report: Enter the \"Performance Measures\" as reported in the grantee's current Annual Report",null,null,{"$f":"'4. HMIS Data'!C16","v":0},null,{"$f":"'4. HMIS Data'!E16","v":0},null,{"$f":"'4. HMIS Data'!G16","v":0},null,{"$f":"'4. HMIS Data'!I16","v":0},null,{"$f":"'4. HMIS Data'!K16","v":0},null,{"$f":"'4. HMIS Data'!M16","v":0},null,{"$f":"'4. HMIS Data'!O16","v":0},{"$f":"'4. HMIS Data'!$Q$16","v":0},{"$f":"'4. HMIS Data'!$S$16","v":0},{"$f":"'4. HMIS Data'!$U$16","v":0},"Select One"]
[5,"Projected: Enter the \"Projected Performance Measures\" as submitted in the grantee's application.",null,null,null,null,null,null,null,null,null,null,null,null,null,null,null,null,null,null,"Select One"]
[null,"Annual Report: Enter the \"Performance Measures\" as reported in the grantee's current Annual Report",null,null,{"$f":"'4. HMIS Data'!C17","v":0},null,{"$f":"'4. HMIS Data'!E17","v":0},null,{"$f":"'4. HMIS Data'!G17","v":0},null,{"$f":"'4. HMIS Data'!I17","v":0},null,{"$f":"'4. HMIS Data'!K17","v":0},null,{"$f":"'4. HMIS Data'!M17","v":0},null,{"$f":"'4. HMIS Data'!O17","v":0},{"$f":"'4. HMIS Data'!$Q$17","v":0},{"$f":"'4. HMIS Data'!$S$17","v":0},{"$f":"'4. HMIS Data'!$U$17","v":0},"Select One"]
[6,"Projected: Enter the \"Projected Performance Measures\" as submitted in the grantee's application.",null,null,null,null,null,null,null,null,null,null,null,null,null,null,null,null,null,null,"Select One"]
[null,"Annual Report: Enter the \"Performance Measures\" as reported in the grantee's current Annual Report",null,null,{"$f":"'4. HMIS Data'!C18","v":0},null,{"$f":"'4. HMIS Data'!E18","v":0},null,{"$f":"'4. HMIS Data'!G18","v":0},null,{"$f":"'4. HMIS Data'!I18","v":0},null,{"$f":"'4. HMIS Data'!K18","v":0},null,{"$f":"'4. HMIS Data'!M18","v":0},null,{"$f":"'4. HMIS Data'!O18","v":0},{"$f":"'4. HMIS Data'!$Q$18","v":0},{"$f":"'4. HMIS Data'!$S$18","v":0},{"$f":"'4. HMIS Data'!$U$18","v":0},"Select One"]
[7,"Projected: Enter the \"Projected Performance Measures\" as submitted in the grantee's application.",null,null,null,null,null,null,null,null,null,null,null,null,null,null,null,null,null,null,"Select One"]
[null,"Annual Report: Enter the \"Performance Measures\" as reported in the grantee's current Annual Report",null,null,{"$f":"'4. HMIS Data'!C19","v":0},null,{"$f":"'4. HMIS Data'!E19","v":0},null,{"$f":"'4. HMIS Data'!G19","v":0},null,{"$f":"'4. HMIS Data'!I19","v":0},null,{"$f":"'4. HMIS Data'!K19","v":0},null,{"$f":"'4. HMIS Data'!M19","v":0},null,{"$f":"'4. HMIS Data'!O19","v":0},{"$f":"'4. HMIS Data'!$Q$19","v":0},{"$f":"'4. HMIS Data'!$S$19","v":0},{"$f":"'4. HMIS Data'!$U$19","v":0},"Select One"]

{"sheet":"Will be Hidden","index":5,"n_rows":19,"n_cols":1,"rows_kept":19,"cut":false,"hidden":true,"merged":[]}
["Select One"]
["Certification by Printed Name"]
["Certification by Signature "]
[]
[]
[]
["Select One"]
["Initial Fund Disbursement - 6/30/2020"]
["7/01/2020 - 6/30/2021"]
["7/01/2021 - 6/30/2022"]
["7/01/2022 - 6/30/2023"]
["7/01/2023 - 6/30/2024"]
["7/01/2024 - 6/30/2025"]
[]
[]
[]
["Select One"]
["Administrative Entity "]
["Subrecipient "]

{"sheet":"Data Tab","index":6,"n_rows":2,"n_cols":298,"rows_kept":2,"cut":false,"hidden":true,"merged":[]}
["HCD Contract #","Reporting Period","Admin Entity Name","Admin Entity Address","Admin Entity City","Admin Entity State","Admin Entity Zip","Admin Entity County","CoC Service Area","CoC #","Total Award Amount","Activity #1 Award Amount","Activity #1 Expended this Reporting period"," Activity #1 Amount Expended By","Activity #1 Name of Subrecipient (if applicable)","Activity #1 Previously Reported Amount Expended","Activity #1 Proof of Expenditures for this Reporting Period Attached?","Activity #1 Percent Expended","Activity #1 Amount of Award Remaining","Activity #1 RFF #1","Activity #1 RFF #2","Activity #1 RFF #3","Activity #2 Total Award","Activity #2 Expended this Reporting period"," Activity #2 Amount Expended By","Activity #2 Name of Subrecipient (if applicable)","Activity #2 Previously Reported Amount Expended","Activity #2 Proof of Expenditures for this Reporting Period Attached?","Activity #2 Percent Expended","Activity #2 Amount of Award Remaining","Activity #2 RFF#1","Activity #2 RFF#2","Activity #2 RFF#3","Activity #3 Total Award Amount","Activity #3 Expended this Reporting period"," Activity #3 Amount Expended By","Activity #3 Name of Subrecipient (if applicable)","Activity #3 Previously Reported Amount Expended","Activity #3 Proof of Expenditures for this Reporting Period Attached?","Activity #3 Percent Expended","Activity #3 Amount of Award Remaining","Activity #3 RFF#1","Activity #3 RFF#2","Activity #3 RFF#3","Activity #4 Total Award Amount","Activity #4 Expended this Reporting period"," Activity #4 Amount Expended By","Activity #4 Name of Subrecipient (if applicable)","Activity #4 Previously Reported Amount Expended","Activity #4 Proof of Expenditures for this Reporting Period Attached?","Activity #4 Percent Expended","Activity #4 Amount of Award Remaining","Activity #4 RFF #1","Activity #4 RFF #2","Activity #4 RFF #3","Activity #5 Total Award Amount","Activity #5 Expended this Reporting period"," Activity #5 Amount Expended By","Activity #5 Name of Subrecipient (if applicable)","Activity #5 Previously Reported Amount Expended","Activity #5 Proof of Expenditures for this Reporting Period Attached?","Activity #5 Percent Expended","Activity #5 Amount of Award Remaining","Activity #5 RFF#1","Activity #5 RFF#1","Activity #5 RFF#1","Activity #6 Total Award Amount","Activity #6 Expended this Reporting period"," Activity #6 Amount Expended By","Activity #6 Name of Subrecipient (if applicable)","Activity #6 Previously Reported Amount Expended","Activity #6 Proof of Expenditures for this Reporting Period Attached?","Activity #6 Percent Expended","Activity #6 Amount of Award Remaining","Activity #6 RFF#1","Activity #6 RFF#2","Activity #6 RFF#3","Activity #7 Total Award Amount","Activity #7 Expended this Reporting period"," Activity #7 Amount Expended By","Activity #7 Name of Subrecipient (if applicable)","Activity #7 Previously Reported Amount Expended","Activity #7 Proof of Expenditures for this Reporting Period Attached?","Activity #7 Percent Expended","Activity #7 Amount of Award Remaining","Activity #7 RFF#1","Activity #7 RFF#2","Activity #7 RFF#3","Admin Award Total","Admin Expended this Reporting Period","Admin Expended By","Admin Name of Subrecipient Expending Funds (if applicable)","Admin Previously Reported Amount Expended","Admin Proof of Expenditures for this Reporting Period Attached?","Admin Percent Expended","Admin Amount of Award Remaining","Admin RFF#1","Admin RFF#2","Admin RFF#3","Activity #1 Expenses (1)","Activity #1 Expense Amount (1)","Activity #1 Expenses (2)","Activity #1 Expense Amount (2)","Activity #1 Expenses (3)","Activity #1 Expense Amount (3)","Activity #1 Expenses (4)","Activity #1 Expense Amount (4)","Activity #2 Expenses (1)","Activity #2 Expense Amount (1)","Activity #2 Expenses (2)","Activity #2 Expense Amount (2)","Activity #2 Expenses (3)","Activity #2 Expense Amount (3)","Activity #2 Expenses (4)","Activity #2 Expense Amount (4)","Activity #3 Expenses (1)","Activity #3 Expense Amount (1)","Activity #3 Expenses (2)","Activity #3 Expense Amount (2)","Activity #3 Expenses (3)","Activity #3 Expense Amount (3)","Activity #3 Expenses (4)","Activity #3 Expense Amount (4)","Activity #4 Expenses (1)","Activity #4 Expense Amount (1)","Activity #4 Expenses (2)","Activity #4 Expense Amount (2)","Activity #4 Expenses (3)","Activity #4 Expense Amount (3)","Activity #4 Expenses (4)","Activity #4 Expense Amount (4)","Activity #5 Expenses (1)","Activity #5 Expense Amount (1)","Activity #5 Expenses (2)","Activity #5 Expense Amount (2)","Activity #5 Expenses (3)","Activity #5 Expense Amount (3)","Activity #5 Expenses (4)","Activity #5 Expense Amount (4)","Activity #6 Expenses (1)","Activity #6 Expense Amount (1)","Activity #6 Expenses (2)","Activity #6 Expense Amount (2)","Activity #6 Expenses (3)","Activity #6 Expense Amount (3)","Activity #6 Expenses (4)","Activity #6 Expense Amount (4)","Activity #7 Expenses (1)","Activity #7 Expense Amount (1)","Activity #7 Expenses (2)","Activity #7 Expense Amount (2)","Activity #7 Expenses (3)","Activity #7 Expense Amount (3)","Activity #7 Expenses (4)","Activity #7 Expense Amount (4)","Admin Expenses (1)","Admin Expense Amount (1)","Admin Expenses (2)","Admin Expense Amount (2)","Admin Expenses (3)","Admin Expense Amount (3)","Admin Expenses (4)","Admin Expense Amount (4)","Subrecipient #1 Name","Subrecipient #1 Award Amount","Subrecipient #2 Name","Subrecipient #2 Award Amount","Subrecipient #3 Name","Subrecipient #3 Award Amount","Subrecipient #4 Name","Projected Performance Measures","Program Income earned during this reporting period","Approx. Number of Households to be assisted with this period's Program Income","Date of Most Recent Site Visit","Success Stories","Activity #1 Number of Homeless Persons Served PROJECTED","Activity #1 Number of Homeless Persons Served","Activity #1 Number of Unsheltered homeless persons served PROJECTED","Activity #1 Number of Unsheltered homeless persons served","Activity #1 Average length of time in days homeless before program entry PROJECTED","Activity #1 Average length of time in days homeless before program entry","Activity #1 Number of homeless persons exiting the program or project into perm. Housing PROJECTED","Activity #1 Number of homeless persons exiting the program or project into perm. housing","Activity #1 Number of Persons that return to homelessness after exiting program PROJECTED","Activity #1 Number of Persons that return to homelessness after exiting program","Activity #1 Number of persons at risk of homelessness served","Activity #1 Other Identified Performance Measure #1","Activity #1 Other Identified Performance Measure #1 Numerical Outcome Projected","Activity #1 Other Identified Performance Measure #1 Numerical Outcome","Activity #1 Other Identified Performance Measure #2 ","Activity #1 Other Identified Performance Measure #2 Numerical Outcome Projected","Activity #1 Other Identified Performance Measure #2 Numerical Outcome","Activity #2 Number of Homeless Persons Served PROJECTED","Activity #2 Number of Homeless Persons Served","Activity #2 Number of Unsheltered homeless persons served PROJECTED","Activity #2 Number of Unsheltered homeless persons served","Activity #2 Average length of time in days homeless before program entry PROJECTED","Activity #2 Average length of time in days homeless before program entry","Activity #2 Number of homeless persons exiting the program or project into perm. Housing PROJECTED","Activity #2 Number of homeless persons exiting the program or project into perm. housing","Activity #2 Number of Persons that return to homelessness after exiting program PROJECTED","Activity #2 Number of Persons that return to homelessness after exiting program","Activity #2 Number of persons at risk of homelessness served","Activity #2 Other Identified Performance Measure #1","Activity #2 Other Identified Performance Measure #1 Numerical Outcome Projected","Activity #2 Other Identified Performance Measure #1 Numerical Outcome","Activity #2 Other Identified Performance Measure #2 ","Activity #2 Other Identified Performance Measure #2 Numerical Outcome Projected","Activity #2 Other Identified Performance Measure #2 Numerical Outcome","Activity #3 Number of Homeless Persons Served PROJECTED","Activity #3 Number of Homeless Persons Served","Activity #3 Number of Unsheltered homeless persons served PROJECTED","Activity #3 Number of Unsheltered homeless persons served","Activity #3 Average length of time in days homeless before program entry PROJECTED","Activity #3 Average length of time in days homeless before program entry","Activity #3 Number of homeless persons exiting the program or project into perm. Housing PROJECTED","Activity #3 Number of homeless persons exiting the program or project into perm. housing","Activity #3 Number of Persons that return to homelessness after exiting program PROJECTED","Activity #3 Number of Persons that return to homelessness after exiting program","Activity #3 Number of persons at risk of homelessness served","Activity #3 Other Identified Performance Measure #1","Activity #3 Other Identified Performance Measure #1 Numerical Outcome Projected","Activity #3 Other Identified Performance Measure #1 Numerical Outcome","Activity #3 Other Identified Performance Measure #2 ","Activity #3 Other Identified Performance Measure #2 Numerical Outcome Projected","Activity #3 Other Identified Performance Measure #2 Numerical Outcome","Activity #4 Number of Homeless Persons Served PROJECTED","Activity #4 Number of Homeless Persons Served","Activity #4 Number of Unsheltered homeless persons served PROJECTED","Activity #4 Number of Unsheltered homeless persons served","Activity #4 Average length of time in days homeless before program entry PROJECTED","Activity #4 Average length of time in days homeless before program entry","Activity #4 Number of homeless persons exiting the program or project into perm. Housing PROJECTED","Activity #4 Number of homeless persons exiting the program or project into perm. housing","Activity #4 Number of Persons that return to homelessness after exiting program PROJECTED","Activity #4 Number of Persons that return to homelessness after exiting program","Activity #4 Number of persons at risk of homelessness served","Activity #4 Other Identified Performance Measure #1","Activity #4 Other Identified Performance Measure #1 Numerical Outcome Projected","Activity #4 Other Identified Performance Measure #1 Numerical Outcome","Activity #4 Other Identified Performance Measure #2 ","Activity #4 Other Identified Performance Measure #2 Numerical Outcome Projected","Activity #4 Other Identified Performance Measure #2 Numerical Outcome","Activity #5 Number of Homeless Persons Served PROJECTED","Activity #5 Number of Homeless Persons Served","Activity #5 Number of Unsheltered homeless persons served PROJECTED","Activity #5 Number of Unsheltered homeless persons served","Activity #5 Average length of time in days homeless before program entry PROJECTED","Activity #5 Average length of time in days homeless before program entry","Activity #5 Number of homeless persons exiting the program or project into perm. Housing PROJECTED","Activity #5 Number of homeless persons exiting the program or project into perm. housing","Activity #5 Number of Persons that return to homelessness after exiting program PROJECTED","Activity #5 Number of Persons that return to homelessness after exiting program","Activity #5 Number of persons at risk of homelessness served","Activity #5 Other Identified Performance Measure #1","Activity #5 Other Identified Performance Measure #1 Numerical Outcome Projected","Activity #5 Other Identified Performance Measure #1 Numerical Outcome","Activity #5 Other Identified Performance Measure #2 ","Activity #5 Other Identified Performance Measure #2 Numerical Outcome Projected","Activity #5 Other Identified Performance Measure #2 Numerical Outcome","Activity #6 Number of Homeless Persons Served PROJECTED","Activity #6 Number of Homeless Persons Served","Activity #6 Number of Unsheltered homeless persons served PROJECTED","Activity #6 Number of Unsheltered homeless persons served","Activity #6 Average length of time in days homeless before program entry PROJECTED","Activity #6 Average length of time in days homeless before program entry","Activity #6 Number of homeless persons exiting the program or project into perm. Housing PROJECTED","Activity #6 Number of homeless persons exiting the program or project into perm. housing","Activity #6 Number of Persons that return to homelessness after exiting program PROJECTED","Activity #6 Number of Persons that return to homelessness after exiting program","Activity #6 Number of persons at risk of homelessness served","Activity #6 Other Identified Performance Measure #1","Activity #6 Other Identified Performance Measure #1 Numerical Outcome Projected","Activity #6 Other Identified Performance Measure #1 Numerical Outcome","Activity #6 Other Identified Performance Measure #2 ","Activity #6 Other Identified Performance Measure #2 Numerical Outcome Projected","Activity #6 Other Identified Performance Measure #2 Numerical Outcome","Activity #7 Number of Homeless Persons Served PROJECTED","Activity #7 Number of Homeless Persons Served","Activity #7 Number of Unsheltered homeless persons served PROJECTED","Activity #7 Number of Unsheltered homeless persons served","Activity #7 Average length of time in days homeless before program entry PROJECTED","Activity #7 Average length of time in days homeless before program entry","Activity #7 Number of homeless persons exiting the program or project into perm. Housing PROJECTED","Activity #7 Number of homeless persons exiting the program or project into perm. housing","Activity #7 Number of Persons that return to homelessness after exiting program PROJECTED","Activity #7 Number of Persons that return to homelessness after exiting program","Activity #7 Number of persons at risk of homelessness served","Activity #7 Other Identified Performance Measure #1","Activity #7 Other Identified Performance Measure #1 Numerical Outcome Projected","Activity #7 Other Identified Performance Measure #1 Numerical Outcome","Activity #7 Other Identified Performance Measure #2 ","Activity #7 Other Identified Performance Measure #2 Numerical Outcome Projected","Activity #7 Other Identified Performance Measure #2 Numerical Outcome","Number of Seniors Served this Reporting Period","Number of TAY Servied this Reporting Period","Number of minor children housed this Reporting period","Comments on HMIS Data"]
[{"$f":"'1. Contact Info & Certification'!$E$16","v":0},{"$f":"'1. Contact Info & Certification'!$L$16","v":"Select One"},{"$f":"'1. Contact Info & Certification'!$E$19","v":0},{"$f":"'1. Contact Info & Certification'!$E$20","v":0},{"$f":"'1. Contact Info & Certification'!$E$21","v":0},{"$f":"'1. Contact Info & Certification'!$L$21","v":0},{"$f":"'1. Contact Info & Certification'!$E$22","v":0},{"$f":"'1. Contact Info & Certification'!$L$22","v":0},{"$f":"'1. Contact Info & Certification'!$E$34","v":0},{"$f":"'1. Contact Info & Certification'!$E$35","v":0},{"$f":"'2. Expenditure Breakdown'!$K$7","v":0},{"$f":"'2. Expenditure Breakdown'!$G$9","v":0},{"$f":"'2. Expenditure Breakdown'!$I$9","v":0},{"$f":"'2. Expenditure Breakdown'!$K$9","v":"Select One"},{"$f":"'2. Expenditure Breakdown'!$L$9","v":0},{"$f":"'2. Expenditure Breakdown'!$M$9","v":0},{"$f":"'2. Expenditure Breakdown'!$O$9","v":"Select One"},{"$f":"'2. Expenditure Breakdown'!$Q$9","v":0},{"$f":"'2. Expenditure Breakdown'!$S$9","v":0},{"$f":"'5. Review Book'!$L$19","v":0},{"$f":"'5. Review Book'!$M$19","v":0},{"$f":"'5. Review Book'!$N$19","v":0},{"$f":"'2. Expenditure Breakdown'!$G$10","v":0},{"$f":"'2. Expenditure Breakdown'!$I$10","v":0},{"$f":"'2. Expenditure Breakdown'!$K$10","v":"Select One"},{"$f":"'2. Expenditure Breakdown'!$L$10","v":0},{"$f":"'2. Expenditure Breakdown'!$M$10","v":0},{"$f":"'2. Expenditure Breakdown'!$O$10","v":"Select One"},{"$f":"'2. Expenditure Breakdown'!$Q$10","v":0},{"$f":"'2. Expenditure Breakdown'!$S$10","v":0},{"$f":"'5. Review Book'!$L$20","v":0},{"$f":"'5. Review Book'!$M$20","v":0},{"$f":"'5. Review Book'!$N$20","v":0},{"$f":"'2. Expenditure Breakdown'!$G$11","v":0},{"$f":"'2. Expenditure Breakdown'!$I$11","v":0},{"$f":"'2. Expenditure Breakdown'!$K$11","v":"Select One"},{"$f":"'2. Expenditure Breakdown'!$L$11","v":0},{"$f":"'2. Expenditure Breakdown'!$M$11","v":0},{"$f":"'2. Expenditure Breakdown'!$O$11","v":"Select One"},{"$f":"'2. Expenditure Breakdown'!$Q$11","v":0},{"$f":"'2. Expenditure Breakdown'!$S$11","v":0},{"$f":"'5. Review Book'!$L$21","v":0},{"$f":"'5. Review Book'!$M$21","v":0},{"$f":"'5. Review Book'!$N$21","v":0},{"$f":"'2. Expenditure Breakdown'!$G$12","v":0},{"$f":"'2. Expenditure Breakdown'!$I$12","v":0},{"$f":"'2. Expenditure Breakdown'!$K$12","v":"Select One"},{"$f":"'2. Expenditure Breakdown'!$L$12","v":0},{"$f":"'2. Expenditure Breakdown'!$M$12","v":0},{"$f":"'2. Expenditure Breakdown'!$O$12","v":"Select One"},{"$f":"'2. Expenditure Breakdown'!$Q$12","v":0},{"$f":"'2. Expenditure Breakdown'!$S$12","v":0},{"$f":"'5. Review Book'!$L$22","v":0},{"$f":"'5. Review Book'!$M$22","v":0},{"$f":"'5. Review Book'!$N$22","v":0},{"$f":"'2. Expenditure Breakdown'!$G$13","v":0},{"$f":"'2. Expenditure Breakdown'!$I$13","v":0},{"$f":"'2. Expenditure Breakdown'!$K$13","v":"Select One"},{"$f":"'2. Expenditure Breakdown'!$L$13","v":0},{"$f":"'2. Expenditure Breakdown'!$M$13","v":0},{"$f":"'2. Expenditure Breakdown'!$O$13","v":"Select One"},{"$f":"'2. Expenditure Breakdown'!$Q$13","v":0},{"$f":"'2. Expenditure Breakdown'!$S$13","v":0},{"$f":"'5. Review Book'!$L$23","v":0},{"$f":"'5. Review Book'!$M$23","v":0},{"$f":"'5. Review Book'!$N$23","v":0},{"$f":"'2. Expenditure Breakdown'!$G$14","v":0},{"$f":"'2. Expenditure Breakdown'!$I$14","v":0},{"$f":"'2. Expenditure Breakdown'!$K$14","v":"Select One"},{"$f":"'2. Expenditure Breakdown'!$L$14","v":0},{"$f":"'2. Expenditure Breakdown'!$M$14","v":0},{"$f":"'2. Expenditure Breakdown'!$O$14","v":"Select One"},{"$f":"'2. Expenditure Breakdown'!$Q$14","v":0},{"$f":"'2. Expenditure Breakdown'!$S$14","v":0},{"$f":"'5. Review Book'!$L$24","v":0},{"$f":"'5. Review Book'!$M$24","v":0},{"$f":"'5. Review Book'!$N$24","v":0},{"$f":"'2. Expenditure Breakdown'!$G$15","v":0},{"$f":"'2. Expenditure Breakdown'!$I$15","v":0},{"$f":"'2. Expenditure Breakdown'!$K$15","v":"Select One"},{"$f":"'2. Expenditure Breakdown'!$L$15","v":0},{"$f":"'2. Expenditure Breakdown'!$M$15","v":0},{"$f":"'2. Expenditure Breakdown'!$O$15","v":"Select One"},{"$f":"'2. Expenditure Breakdown'!$Q$15","v":0},{"$f":"'2. Expenditure Breakdown'!$S$15","v":0},{"$f":"'5. Review Book'!$L$25","v":0},{"$f":"'5. Review Book'!$M$25","v":0},{"$f":"'5. Review Book'!$N$25","v":0},{"$f":"'2. Expenditure Breakdown'!$G$16","v":0},{"$f":"'2. Expenditure Breakdown'!$I$16","v":0},{"$f":"'2. Expenditure Breakdown'!$K$16","v":"Select One"},{"$f":"'2. Expenditure Breakdown'!$L$16","v":0},{"$f":"'2. Expenditure Breakdown'!$M$16","v":0},{"$f":"'2. Expenditure Breakdown'!$O$16","v":"Select One"},{"$f":"'2. Expenditure Breakdown'!$Q$16","v":0},{"$f":"'2. Expenditure Breakdown'!$S$16","v":0},{"$f":"'5. Review Book'!$L$26","v":0},{"$f":"'5. Review Book'!$M$26","v":0},{"$f":"'5. Review Book'!$N$26","v":0},{"$f":"'2. Expenditure Breakdown'!$A$22","v":0},{"$f":"'2. Expenditure Breakdown'!$Q$22","v":0},{"$f":"'2. Expenditure Breakdown'!$A$23","v":0},{"$f":"'2. Expenditure Breakdown'!$Q$23","v":0},{"$f":"'2. Expenditure Breakdown'!$A$24","v":0},{"$f":"'2. Expenditure Breakdown'!$Q$24","v":0},{"$f":"'2. Expenditure Breakdown'!$A$25","v":0},{"$f":"'2. Expenditure Breakdown'!$Q$25","v":0},{"$f":"'2. Expenditure Breakdown'!$A$30","v":0},{"$f":"'2. Expenditure Breakdown'!$Q$30","v":0},{"$f":"'2. Expenditure Breakdown'!$A$31","v":0},{"$f":"'2. Expenditure Breakdown'!$Q$31","v":0},{"$f":"'2. Expenditure Breakdown'!$A$32","v":0},{"$f":"'2. Expenditure Breakdown'!$Q$32","v":0},{"$f":"'2. Expenditure Breakdown'!$A$33","v":0},{"$f":"'2. Expenditure Breakdown'!$Q$33","v":0},{"$f":"'2. Expenditure Breakdown'!$A$38","v":0},{"$f":"'2. Expenditure Breakdown'!$Q$38","v":0},{"$f":"'2. Expenditure Breakdown'!$A$39","v":0},{"$f":"'2. Expenditure Breakdown'!$Q$39","v":0},{"$f":"'2. Expenditure Breakdown'!$A$40","v":0},{"$f":"'2. Expenditure Breakdown'!$Q$40","v":0},{"$f":"'2. Expenditure Breakdown'!$A$41","v":0},{"$f":"'2. Expenditure Breakdown'!$Q$41","v":0},{"$f":"'2. Expenditure Breakdown'!$A$46","v":0},{"$f":"'2. Expenditure Breakdown'!$Q$46","v":0},{"$f":"'2. Expenditure Breakdown'!$A$47","v":0},{"$f":"'2. Expenditure Breakdown'!$Q$47","v":0},{"$f":"'2. Expenditure Breakdown'!$A$48","v":0},{"$f":"'2. Expenditure Breakdown'!$Q$48","v":0},{"$f":"'2. Expenditure Breakdown'!$A$49","v":0},{"$f":"'2. Expenditure Breakdown'!$Q$49","v":0},{"$f":"'2. Expenditure Breakdown'!$A$54","v":0},{"$f":"'2. Expenditure Breakdown'!$Q$54","v":0},{"$f":"'2. Expenditure Breakdown'!$A$55","v":0},{"$f":"'2. Expenditure Breakdown'!$Q$55","v":0},{"$f":"'2. Expenditure Breakdown'!$A$56","v":0},{"$f":"'2. Expenditure Breakdown'!$Q$56","v":0},{"$f":"'2. Expenditure Breakdown'!$A$57","v":0},{"$f":"'2. Expenditure Breakdown'!$Q$57","v":0},{"$f":"'2. Expenditure Breakdown'!$A$62","v":0},{"$f":"'2. Expenditure Breakdown'!$Q$62","v":0},{"$f":"'2. Expenditure Breakdown'!$A$63","v":0},{"$f":"'2. Expenditure Breakdown'!$Q$63","v":0},{"$f":"'2. Expenditure Breakdown'!$A$64","v":0},{"$f":"'2. Expenditure Breakdown'!$Q$64","v":0},{"$f":"'2. Expenditure Breakdown'!$A$65","v":0},{"$f":"'2. Expenditure Breakdown'!$Q$65","v":0},{"$f":"'2. Expenditure Breakdown'!$A$70","v":0},{"$f":"'2. Expenditure Breakdown'!$Q$70","v":0},{"$f":"'2. Expenditure Breakdown'!$A$71","v":0},{"$f":"'2. Expenditure Breakdown'!$Q$71","v":0},{"$f":"'2. Expenditure Breakdown'!$A$72","v":0},{"$f":"'2. Expenditure Breakdown'!$Q$72","v":0},{"$f":"'2. Expenditure Breakdown'!$A$73","v":0},{"$f":"'2. Expenditure Breakdown'!$Q$73","v":0},{"$f":"'2. Expenditure Breakdown'!$A$78","v":0},{"$f":"'2. Expenditure Breakdown'!$Q$78","v":0},{"$f":"'2. Expenditure Breakdown'!$A$79","v":0},{"$f":"'2. Expenditure Breakdown'!$Q$79","v":0},{"$f":"'2. Expenditure Breakdown'!$A$80","v":0},{"$f":"'2. Expenditure Breakdown'!$Q$80","v":0},{"$f":"'2. Expenditure Breakdown'!$A$81","v":0},{"$f":"'2. Expenditure Breakdown'!$Q$81","v":0},{"$f":"'3. Reporting Requirements '!$E$16","v":0},{"$f":"'3. Reporting Requirements '!$J$16","v":0},{"$f":"'3. Reporting Requirements '!$E$17","v":0},{"$f":"'3. Reporting Requirements '!$J$17","v":0},{"$f":"'3. Reporting Requirements '!$E$18","v":0},{"$f":"'3. Reporting Requirements '!$J$18","v":0},{"$f":"'3. Reporting Requirements '!$E$19","v":0},{"$f":"'3. Reporting Requirements '!$J$19","v":0},{"$f":"'3. Reporting Requirements '!$F$31","v":0},{"$f":"'3. Reporting Requirements '!$N$31","v":0},{"$f":"'3. Reporting Requirements '!$N$33","v":0},{"$f":"'3. Reporting Requirements '!$A$37","v":0},{"$f":"'5. Review Book'!$E$41","v":0},{"$f":"'5. Review Book'!$E$42","v":0},{"$f":"'5. Review Book'!$G$41","v":0},{"$f":"'5. Review Book'!$G$42","v":0},{"$f":"'5. Review Book'!$I$41","v":0},{"$f":"'5. Review Book'!$I$42","v":0},{"$f":"'5. Review Book'!$K$41","v":0},{"$f":"'5. Review Book'!$K$42","v":0},{"$f":"'5. Review Book'!$M$41","v":0},{"$f":"'5. Review Book'!$M$42","v":0},{"$f":"'5. Review Book'!$O$42","v":0},{"$f":"'5. Review Book'!$Q$42","v":0},{"$f":"'5. Review Book'!$R$41","v":0},{"$f":"'5. Review Book'!$R$42","v":0},{"$f":"'5. Review Book'!$S$42","v":0},{"$f":"'5. Review Book'!$T$41","v":0},{"$f":"'5. Review Book'!$T$41","v":0},{"$f":"'5. Review Book'!$E$43","v":0},{"$f":"'5. Review Book'!$E$44","v":0},{"$f":"'5. Review Book'!$G$43","v":0},{"$f":"'5. Review Book'!$G$44","v":0},{"$f":"'5. Review Book'!$I$43","v":0},{"$f":"'5. Review Book'!$I$44","v":0},{"$f":"'5. Review Book'!$K$43","v":0},{"$f":"'5. Review Book'!$K$44","v":0},{"$f":"'5. Review Book'!$M$43","v":0},{"$f":"'5. Review Book'!$M$44","v":0},{"$f":"'5. Review Book'!$O$44","v":0},{"$f":"'5. Review Book'!$Q$44","v":0},{"$f":"'5. Review Book'!$R$43","v":0},{"$f":"'5. Review Book'!$R$44","v":0},{"$f":"'5. Review Book'!$S$44","v":0},{"$f":"'5. Review Book'!$T$43","v":0},{"$f":"'5. Review Book'!$T$44","v":0},{"$f":"'5. Review Book'!$E$45","v":0},{"$f":"'5. Review Book'!$E$46","v":0},{"$f":"'5. Review Book'!$G$45","v":0},{"$f":"'5. Review Book'!$G$46","v":0},{"$f":"'5. Review Book'!$I$45","v":0},{"$f":"'5. Review Book'!$I$46","v":0},{"$f":"'5. Review Book'!$K$45","v":0},{"$f":"'5. Review Book'!$K$46","v":0},{"$f":"'5. Review Book'!$M$45","v":0},{"$f":"'5. Review Book'!$M$46","v":0},{"$f":"'5. Review Book'!$O$46","v":0},{"$f":"'5. Review Book'!$Q$46","v":0},{"$f":"'5. Review Book'!$R$45","v":0},{"$f":"'5. Review Book'!$R$46","v":0},{"$f":"'5. Review Book'!$S$46","v":0},{"$f":"'5. Review Book'!$T$45","v":0},{"$f":"'5. Review Book'!$T$46","v":0},{"$f":"'5. Review Book'!$E$47","v":0},{"$f":"'5. Review Book'!$E$48","v":0},{"$f":"'5. Review Book'!$G$47","v":0},{"$f":"'5. Review Book'!$G$48","v":0},{"$f":"'5. Review Book'!$I$47","v":0},{"$f":"'5. Review Book'!$I$48","v":0},{"$f":"'5. Review Book'!$K$47","v":0},{"$f":"'5. Review Book'!$K$48","v":0},{"$f":"'5. Review Book'!$M$47","v":0},{"$f":"'5. Review Book'!$M$48","v":0},{"$f":"'5. Review Book'!$O$48","v":0},{"$f":"'5. Review Book'!$Q$48","v":0},{"$f":"'5. Review Book'!$R$47","v":0},{"$f":"'5. Review Book'!$R$48","v":0},{"$f":"'5. Review Book'!$S$48","v":0},{"$f":"'5. Review Book'!$T$47","v":0},{"$f":"'5. Review Book'!$T$48","v":0},{"$f":"'5. Review Book'!$E$49","v":0},{"$f":"'5. Review Book'!$E$50","v":0},{"$f":"'5. Review Book'!$G$49","v":0},{"$f":"'5. Review Book'!$G$50","v":0},{"$f":"'5. Review Book'!$I$49","v":0},{"$f":"'5. Review Book'!$I$50","v":0},{"$f":"'5. Review Book'!$K$49","v":0},{"$f":"'5. Review Book'!$K$50","v":0},{"$f":"'5. Review Book'!$M$49","v":0},{"$f":"'5. Review Book'!$M$50","v":0},{"$f":"'5. Review Book'!$O$50","v":0},{"$f":"'5. Review Book'!$Q$50","v":0},{"$f":"'5. Review Book'!$R$49","v":0},{"$f":"'5. Review Book'!$R$50","v":0},{"$f":"'5. Review Book'!$S$50","v":0},{"$f":"'5. Review Book'!$T$49","v":0},{"$f":"'5. Review Book'!$T$50","v":0},{"$f":"'5. Review Book'!$E$51","v":0},{"$f":"'5. Review Book'!$E$52","v":0},{"$f":"'5. Review Book'!$G$51","v":0},{"$f":"'5. Review Book'!$G$52","v":0},{"$f":"'5. Review Book'!$I$51","v":0},{"$f":"'5. Review Book'!$I$52","v":0},{"$f":"'5. Review Book'!$K$51","v":0},{"$f":"'5. Review Book'!$K$52","v":0},{"$f":"'5. Review Book'!$M$51","v":0},{"$f":"'5. Review Book'!$M$52","v":0},{"$f":"'5. Review Book'!$O$52","v":0},{"$f":"'5. Review Book'!$Q$52","v":0},{"$f":"'5. Review Book'!$R$51","v":0},{"$f":"'5. Review Book'!$R$52","v":0},{"$f":"'5. Review Book'!$S$52","v":0},{"$f":"'5. Review Book'!$T$51","v":0},{"$f":"'5. Review Book'!$T$52","v":0},{"$f":"'5. Review Book'!$E$53","v":0},{"$f":"'5. Review Book'!$E$54","v":0},{"$f":"'5. Review Book'!$G$53","v":0},{"$f":"'5. Review Book'!$G$54","v":0},{"$f":"'5. Review Book'!$I$53","v":0},{"$f":"'5. Review Book'!$I$54","v":0},{"$f":"'5. Review Book'!$K$53","v":0},{"$f":"'5. Review Book'!$K$54","v":0},{"$f":"'5. Review Book'!$M$53","v":0},{"$f":"'5. Review Book'!$M$54","v":0},{"$f":"'5. Review Book'!$O$54","v":0},{"$f":"'5. Review Book'!$Q$54","v":0},{"$f":"'5. Review Book'!$R$53","v":0},{"$f":"'5. Review Book'!$R$54","v":0},{"$f":"'5. Review Book'!$S$54","v":0},{"$f":"'5. Review Book'!$T$53","v":0},{"$f":"'5. Review Book'!$T$54","v":0},{"$f":"'4. HMIS Data'!$U$22","v":0},{"$f":"'4. HMIS Data'!$U$21","v":0},{"$f":"'4. HMIS Data'!$U$23","v":0},{"$f":"'4. HMIS Data'!$A$26","v":0}]